fUSD/lending_fUSD_20250124
["ID","MTS","AMOUNT","RATE_DAILY","PERIOD"]
[350206732,1737689439315,-180.91,0.00018746,2]
[350206733,1737689439325,-500.0,0.00018746,2]
[350206734,1737689439334,-500.0,0.00018746,2]
[350206735,1737689439344,-500.0,0.00018746,2]
[350206736,1737689439354,-500.0,0.00018746,2]
[350206737,1737689439363,-500.0,0.00018746,2]
[350206738,1737689439373,-500.0,0.00018746,2]
[350206739,1737689439387,-506.26,0.00018746,2]
[350206740,1737689439397,-500.0,0.00018746,2]
[350206741,1737689439406,-500.0,0.00018746,2]
[350206742,1737689439416,-500.0,0.00018746,2]
[350206743,1737689439426,-500.0,0.00018746,2]
[350206744,1737689439436,-500.0,0.00018746,2]
[350206745,1737689439445,-633.2,0.00018746,2]
[350206746,1737689439454,-500.0,0.00018746,2]
[350206747,1737689439464,-500.0,0.00018746,2]
[350206748,1737689439473,-500.0,0.00018746,2]
[350206749,1737689439483,-500.0,0.00018746,2]
[350206750,1737689439492,-500.0,0.00018746,2]
[350206751,1737689439502,-956.13,0.00018746,2]
[350206752,1737689439511,-500.0,0.00018746,2]
[350206753,1737689439520,-500.0,0.00018746,2]
[350206754,1737689439529,-500.0,0.00018746,2]
[350206755,1737689439538,-500.0,0.00018746,2]
[350206756,1737689439549,-500.0,0.00018746,2]
[350206757,1737689439558,-500.0,0.00018746,2]
[350206758,1737689439568,-500.0,0.00018746,2]
[350206759,1737689439578,-500.0,0.00018746,2]
[350206760,1737689439587,-500.0,0.00018746,2]
[350206761,1737689439597,-500.0,0.00018746,2]
[350206762,1737689439606,-500.0,0.00018746,2]
[350206763,1737689439616,-500.0,0.00018746,2]
[350206764,1737689439627,-500.0,0.00018746,2]
[350206766,1737689439637,-500.0,0.00018746,2]
[350206767,1737689439646,-500.0,0.00018746,2]
[350206768,1737689439655,-500.0,0.00018746,2]
[350206769,1737689439665,-500.0,0.00018746,2]
[350206770,1737689439675,-500.0,0.00018746,2]
[350206771,1737689439684,-500.0,0.00018746,2]
[350206772,1737689439693,-500.0,0.00018746,2]
[350206773,1737689439703,-500.0,0.00018746,2]
[350206774,1737689439716,-500.0,0.00018746,2]
[350206775,1737689439726,-500.0,0.00018746,2]
[350206776,1737689439736,-500.0,0.00018746,2]
[350206777,1737689439746,-500.0,0.00018746,2]
[350206778,1737689439757,-500.0,0.00018746,2]
[350206779,1737689439766,-613.5,0.00018746,2]
[350206780,1737689439775,-500.0,0.00018746,2]
[350206781,1737689439785,-500.0,0.00018746,2]
[350206782,1737689439797,-592.2516702,0.00018746,2]
[350206783,1737689439806,-1257.65,0.00018746,2]
[350206784,1737689439816,-500.0,0.00018746,2]
[350206785,1737689439826,-500.0,0.00018746,2]
[350206786,1737689439835,-1930.23,0.00018746,2]
[350206787,1737689439845,-500.0,0.00018746,2]
[350206788,1737689439855,-500.0,0.00018746,2]
[350206789,1737689439864,-500.0,0.00018746,2]
[350206790,1737689439874,-500.0,0.00018746,2]
[350206791,1737689439885,-500.0,0.00018746,2]
[350206792,1737689439895,-500.0,0.00018746,2]
[350206793,1737689439905,-500.0,0.00018746,2]
[350206794,1737689439914,-500.0,0.00018746,2]
[350206795,1737689439924,-500.0,0.00018746,2]
[350206796,1737689439933,-503.4,0.00018746,2]
[350206797,1737689439943,-500.0,0.00018746,2]
[350206798,1737689439952,-500.0,0.00018746,2]
[350206799,1737689439962,-500.0,0.00018746,2]
[350206800,1737689439972,-500.0,0.00018746,2]
[350206801,1737689439981,-500.0,0.00018746,2]
[350206802,1737689439991,-500.0,0.00018746,2]
[350206803,1737689440000,-500.0,0.00018746,2]
[350206804,1737689440010,-500.0,0.00018746,2]
[350206805,1737689440019,-500.0,0.00018746,2]
[350206806,1737689440029,-500.0,0.00018746,2]
[350206807,1737689440038,-500.0,0.00018746,2]
[350206808,1737689440048,-500.0,0.00018746,2]
[350206809,1737689440058,-500.0,0.00018746,2]
[350206810,1737689440067,-500.0,0.00018746,2]
[350206811,1737689440077,-500.0,0.00018746,2]
[350206812,1737689440087,-500.0,0.00018746,2]
[350206813,1737689440096,-500.0,0.00018746,2]
[350206814,1737689440107,-501.04,0.00018746,2]
[350206815,1737689440117,-500.0,0.00018746,2]
[350206816,1737689440128,-500.0,0.00018746,2]
[350206817,1737689440138,-500.0,0.00018746,2]
[350206818,1737689440150,-500.0,0.00018746,2]
[350206819,1737689440160,-500.0,0.00018746,2]
[350206820,1737689440169,-500.0,0.00018746,2]
[350206821,1737689440178,-500.0,0.00018746,2]
[350206822,1737689440187,-500.0,0.00018746,2]
[350206823,1737689440198,-529.27356791,0.00018746,2]
[350206824,1737689440207,-500.0,0.00018746,2]
[350206825,1737689440217,-500.0,0.00018746,2]
[350206826,1737689440226,-500.0,0.00018746,2]
[350206827,1737689440236,-500.0,0.00018746,2]
[350206828,1737689440245,-500.0,0.00018746,2]
[350206829,1737689440255,-500.0,0.00018746,2]
[350206830,1737689440264,-500.0,0.00018746,2]
[350206831,1737689440274,-500.0,0.00018746,2]
[350206832,1737689440284,-500.89857139,0.00018746,2]
[350206833,1737689440294,-500.0,0.00018746,2]
[350206834,1737689440304,-500.0,0.00018746,2]
[350206835,1737689440313,-184.94,0.00018748,2]
[350206836,1737689440322,-500.0,0.00018748,2]
[350206837,1737689440331,-278.98,0.00018748,2]
[350206838,1737689440341,-207.22,0.00018748,2]
[350206839,1737689440350,-361.595,0.00018748,2]
[350206840,1737689440359,-353.29,0.00018751,2]
[350206841,1737689440369,-151.69371315,0.00018773,2]
[350206842,1737689440379,-545.53668907,0.00018783,2]
[350206843,1737689440388,-500.0,0.00018783,2]
[350206845,1737689440397,-500.0,0.00018783,2]
[350206847,1737689440406,-500.0,0.00018783,2]
[350206849,1737689440415,-508.62221544,0.00018783,2]
[350206850,1737689440424,-529.6148894,0.00018783,2]
[350206851,1737689440434,-500.0,0.00018783,2]
[350206852,1737689440444,-500.0,0.00018783,2]
[350206853,1737689440452,-500.0,0.00018783,2]
[350206854,1737689440462,-505.75536989,0.00018783,2]
[350206855,1737689440471,-593.72891339,0.00018783,2]
[350206856,1737689440481,-500.0,0.00018783,2]
[350206857,1737689440490,-500.0,0.00018783,2]
[350206858,1737689440499,-617.74118275,0.00018783,2]
[350206859,1737689440508,-510.25274983,0.00018783,2]
[350206861,1737689440518,-514.3190444,0.00018783,2]
[350206862,1737689440526,-512.22257164,0.00018783,2]
[350206864,1737689440536,-500.0,0.00018783,2]
[350206865,1737689440545,-500.0,0.00018783,2]
[350206866,1737689440555,-506.55589216,0.00018783,2]
[350206867,1737689440566,-500.0,0.00018783,2]
[350206868,1737689440575,-503.23069266,0.00018783,2]
[350206869,1737689440585,-500.0,0.00018783,2]
[350206870,1737689440724,-201.59944248,0.00018783,2]
[350206871,1737689440735,-500.0,0.00018783,2]
[350206872,1737689440744,-500.0,0.00018783,2]
[350206873,1737689440753,-500.0,0.00018783,2]
[350206874,1737689440763,-241.69067566,0.00018783,2]
[350206875,1737689440772,-500.0,0.00018783,2]
[350206876,1737689440781,-500.0,0.00018783,2]
[350206877,1737689440790,-500.0,0.00018783,2]
[350206878,1737689440801,-500.0,0.00018783,2]
[350206879,1737689440812,-500.0,0.00018783,2]
[350206880,1737689440823,-500.0,0.00018783,2]
[350206881,1737689440832,-500.0,0.00018783,2]
[350206882,1737689440842,-391.41746828,0.00018783,2]
[350206883,1737689440851,-500.0,0.00018783,2]
[350206884,1737689440861,-530.15909279,0.00018783,2]
[350206885,1737689440871,-500.0,0.00018783,2]
[350206886,1737689440881,-500.0,0.00018783,2]
[350206887,1737689440891,-500.0,0.00018783,2]
[350206888,1737689440900,-500.0,0.00018783,2]
[350206889,1737689440910,-566.1066173,0.00018783,2]
[350206890,1737689440919,-500.0,0.00018783,2]
[350206891,1737689440928,-500.0,0.00018783,2]
[350206892,1737689440938,-500.0,0.00018783,2]
[350206893,1737689440947,-500.0,0.00018783,2]
[350206894,1737689440957,-500.0,0.00018783,2]
[350206895,1737689440966,-500.0,0.00018783,2]
[350206896,1737689440975,-500.0,0.00018783,2]
[350206897,1737689440985,-529.74740883,0.00018783,2]
[350206898,1737689440994,-500.0,0.00018783,2]
[350206899,1737689441003,-500.0,0.00018783,2]
[350206900,1737689441012,-514.51192622,0.00018783,2]
[350206901,1737689441022,-500.0,0.00018783,2]
[350206902,1737689441031,-500.0,0.00018783,2]
[350206903,1737689441040,-500.0,0.00018783,2]
[350206904,1737689441049,-500.0,0.00018783,2]
[350206905,1737689441059,-500.0,0.00018783,2]
[350206906,1737689441068,-500.0,0.00018783,2]
[350206907,1737689441077,-500.0,0.00018783,2]
[350206908,1737689441087,-500.0,0.00018783,2]
[350206909,1737689441096,-500.0,0.00018783,2]
[350206910,1737689441105,-463.41932555,0.00018783,2]
[350206911,1737689441114,-308.83698187,0.00018783,2]
[350206912,1737689441123,-500.0,0.00018783,2]
[350206913,1737689441134,-500.0,0.00018783,2]
[350206914,1737689441143,-500.0,0.00018783,2]
[350206915,1737689441153,-500.0,0.00018783,2]
[350206916,1737689441163,-591.19471697,0.00018783,2]
[350206917,1737689441173,-500.0,0.00018783,2]
[350206918,1737689441182,-500.0,0.00018783,2]
[350206919,1737689441195,-500.0,0.00018783,2]
[350206920,1737689441205,-500.0,0.00018783,2]
[350206921,1737689441214,-500.0,0.00018783,2]
[350206922,1737689441224,-500.0,0.00018783,2]
[350206923,1737689441232,-500.0,0.00018783,2]
[350206924,1737689441242,-500.0,0.00018783,2]
[350206925,1737689441251,-500.0,0.00018783,2]
[350206926,1737689441259,-500.0,0.00018783,2]
[350206927,1737689441269,-500.0,0.00018783,2]
[350206928,1737689441278,-500.0,0.00018783,2]
[350206929,1737689441287,-500.0,0.00018783,2]
[350206930,1737689441295,-515.62672277,0.00018783,2]
[350206931,1737689441304,-597.12876896,0.00018783,2]
[350206932,1737689441313,-500.0,0.00018783,2]
[350206933,1737689441323,-500.0,0.00018783,2]
[350206934,1737689441332,-500.0,0.00018783,2]
[350206935,1737689441340,-500.0,0.00018783,2]
[350206936,1737689441350,-500.0,0.00018783,2]
[350206937,1737689441359,-360.05104776,0.00018783,2]
[350206938,1737689441368,-274.56570014,0.00018783,2]
[350206939,1737689441379,-500.0,0.00018783,2]
[350206940,1737689441388,-322.26740942,0.00018783,2]
[350206941,1737689441397,-500.0,0.00018783,2]
[350206942,1737689441407,-500.0,0.00018783,2]
[350206943,1737689441416,-500.0,0.00018783,2]
[350206944,1737689441425,-500.0,0.00018783,2]
[350206945,1737689441434,-500.0,0.00018783,2]
[350206946,1737689441444,-500.0,0.00018783,2]
[350206947,1737689441453,-500.0,0.00018783,2]
[350206948,1737689441462,-500.0,0.00018783,2]
[350206949,1737689441471,-500.0,0.00018783,2]
[350206950,1737689441480,-400.26206718,0.00018783,2]
[350206951,1737689441489,-509.59803716,0.00018783,2]
[350206952,1737689441497,-500.0,0.00018783,2]
[350206953,1737689441507,-500.0,0.00018783,2]
[350206954,1737689441515,-500.0,0.00018783,2]
[350206955,1737689441524,-500.0,0.00018783,2]
[350206956,1737689441534,-500.0,0.00018783,2]
[350206957,1737689441543,-500.0,0.00018783,2]
[350206958,1737689441552,-506.90421073,0.00018783,2]
[350206959,1737689441561,-500.0,0.00018783,2]
[350206960,1737689441570,-500.0,0.00018783,2]
[350206961,1737689441579,-500.0,0.00018783,2]
[350206962,1737689441588,-519.7278937,0.00018783,2]
[350206963,1737689441597,-500.0,0.00018783,2]
[350206964,1737689441606,-500.0,0.00018783,2]
[350206965,1737689441615,-500.0,0.00018783,2]
[350206966,1737689441623,-526.47973017,0.00018783,2]
[350206967,1737689441635,-500.0,0.00018783,2]
[350206968,1737689441644,-500.0,0.00018783,2]
[350206969,1737689441653,-500.0,0.00018783,2]
[350206970,1737689441662,-310.21548746,0.00018783,2]
[350206971,1737689441671,-500.0,0.00018783,2]
[350206972,1737689441681,-505.75382691,0.00018783,2]
[350206973,1737689441690,-500.0,0.00018783,2]
[350206974,1737689441699,-500.0,0.00018783,2]
[350206975,1737689441711,-500.0,0.00018783,2]
[350206976,1737689441724,-500.0,0.00018783,2]
[350206977,1737689441734,-500.0,0.00018783,2]
[350206978,1737689441744,-515.91671259,0.00018783,2]
[350206979,1737689441754,-500.0,0.00018783,2]
[350206980,1737689441764,-316.76537206,0.00018783,2]
[350206981,1737689441773,-500.0,0.00018783,2]
[350206982,1737689441782,-500.0,0.00018783,2]
[350206983,1737689441793,-500.0,0.00018783,2]
[350206984,1737689441802,-508.56931803,0.00018783,2]
[350206985,1737689441811,-224.36961013,0.00018783,2]
[350206986,1737689441820,-500.0,0.00018783,2]
[350206987,1737689441829,-500.0,0.00018783,2]
[350206988,1737689441839,-500.0,0.00018783,2]
[350206989,1737689441848,-500.0,0.00018783,2]
[350206990,1737689441857,-500.0,0.00018783,2]
[350206991,1737689441867,-500.0,0.00018783,2]
[350206992,1737689441876,-500.0,0.00018783,2]
[350206993,1737689441885,-500.0,0.00018783,2]
[350206994,1737689441894,-500.0,0.00018783,2]
[350206995,1737689441904,-500.0,0.00018783,2]
[350206996,1737689441913,-500.0,0.00018783,2]
[350206997,1737689441922,-500.0,0.00018783,2]
[350206998,1737689441931,-500.0,0.00018783,2]
[350206999,1737689441941,-500.0,0.00018783,2]
[350207000,1737689441951,-521.01925422,0.00018783,2]
[350207001,1737689441960,-511.28386839,0.00018783,2]
[350207002,1737689441969,-500.0,0.00018783,2]
[350207003,1737689441979,-500.0,0.00018783,2]
[350207004,1737689441989,-500.0,0.00018783,2]
[350207005,1737689441998,-500.0,0.00018783,2]
[350207006,1737689442008,-585.21,0.00018783,2]
[350207007,1737689442017,-522.05738219,0.00018783,2]
[350207008,1737689442026,-500.0,0.00018783,2]
[350207009,1737689442035,-500.0,0.00018783,2]
[350207010,1737689442045,-500.0,0.00018783,2]
[350207011,1737689442054,-500.0,0.00018783,2]
[350207012,1737689442064,-500.0,0.00018783,2]
[350207013,1737689442073,-507.59180348,0.00018783,2]
[350207014,1737689442083,-500.0,0.00018783,2]
[350207015,1737689442095,-156.64298287,0.00018783,2]
[350207016,1737689442107,-516.66525931,0.00018783,2]
[350207017,1737689442116,-500.0,0.00018783,2]
[350207018,1737689442125,-507.94711737,0.00018783,2]
[350207019,1737689442137,-500.0,0.00018783,2]
[350207020,1737689442147,-505.58798117,0.00018783,2]
[350207021,1737689442157,-503.40626096,0.00018783,2]
[350207022,1737689442168,-500.0,0.00018783,2]
[350207023,1737689442178,-500.0,0.00018783,2]
[350207024,1737689442187,-517.54671978,0.00018783,2]
[350207025,1737689442196,-500.0,0.00018783,2]
[350207026,1737689442206,-500.0,0.00018783,2]
[350207027,1737689442215,-508.07176647,0.00018783,2]
[350207028,1737689442224,-500.0,0.00018783,2]
[350207029,1737689442233,-500.0,0.00018783,2]
[350207030,1737689442243,-500.0,0.00018783,2]
[350207031,1737689442252,-190.51,0.00018786,2]
[350207032,1737689442261,-1311.22462217,0.00018822,2]
[350207033,1737689442271,-360.20503804,0.00018866,2]
[350207034,1737689442280,-802.74,0.00018904,2]
[350207035,1737689442289,-500.0,0.00018904,2]
[350207036,1737689442299,-646.54,0.00018904,2]
[350207037,1737689442308,-500.0,0.00018904,2]
[350207038,1737689442318,-500.0,0.00018904,2]
[350207039,1737689442327,-500.0,0.00018904,2]
[350207040,1737689442337,-790.11,0.00018904,2]
[350207041,1737689442346,-715.81,0.00018904,2]
[350207042,1737689442355,-500.0,0.00018904,2]
[350207043,1737689442365,-1205.98,0.00018904,2]
[350207044,1737689442374,-500.0,0.00018904,2]
[350207045,1737689442384,-719.0,0.00018904,2]
[350207046,1737689442394,-666.5,0.00018904,2]
[350207047,1737689442403,-1075.65,0.00018904,2]
[350207048,1737689442412,-500.0,0.00018904,2]
[350207049,1737689442421,-500.0,0.00018935,2]
[350207050,1737689442430,-152.0,0.00018935,4]
[350207051,1737689442439,-1311.22462217,0.00018967,2]
[350207052,1737689442449,-86329.27371613,0.00019,2]
[350207053,1737689442460,-650.0,0.00019,2]
[350207054,1737689442471,-360.20503804,0.00019003,2]
[350207055,1737689442480,-609.279078,0.00019019,2]
[350207056,1737689442489,-500.0,0.00019019,2]
[350207057,1737689442498,-603.18,0.00019019,2]
[350207058,1737689442507,-405.307645,0.00019019,2]
[350207059,1737689442516,-1135.6,0.00019019,2]
[350207060,1737689442525,-723.35,0.00019019,2]
[350207061,1737689442535,-500.0,0.00019019,2]
[350207062,1737689442544,-500.0,0.00019019,2]
[350207063,1737689442554,-1035.95,0.00019019,2]
[350207064,1737689442564,-1419.55,0.00019019,2]
[350207065,1737689442574,-1122.99,0.00019019,2]
[350207066,1737689442583,-500.0,0.00019019,2]
[350207067,1737689442593,-500.0,0.00019019,2]
[350207068,1737689442602,-500.0,0.00019019,2]
[350207069,1737689442611,-1157.14,0.00019019,2]
[350207070,1737689442621,-620.74,0.00019019,2]
[350207071,1737689442632,-500.0,0.00019019,2]
[350207072,1737689442641,-500.0,0.00019019,2]
[350207073,1737689442650,-500.0,0.00019019,2]
[350207074,1737689442659,-500.0,0.00019019,2]
[350207075,1737689442668,-737.89,0.00019019,2]
[350207076,1737689442677,-500.0,0.00019019,2]
[350207078,1737689442687,-647.14,0.00019019,2]
[350207080,1737689442696,-572.96,0.00019019,2]
[350207082,1737689442706,-217.29943563,0.00019019,2]
[350207083,1737689442719,-1634.71,0.00019019,2]
[350207084,1737689442728,-1346.54,0.00019019,2]
[350207086,1737689442737,-500.0,0.00019019,2]
[350207087,1737689442746,-856.46,0.00019019,2]
[350207088,1737689442757,-500.0,0.00019019,2]
[350207089,1737689442767,-500.0,0.00019019,2]
[350207090,1737689442778,-1088.73,0.00019019,2]
[350207092,1737689442790,-500.0,0.0001902,2]
[350207093,1737689442800,-500.0,0.0001902,2]
[350207094,1737689442809,-274.86,0.0001902,2]
[350207095,1737689442820,-156.82560853,0.0001902,2]
[350207096,1737689442830,-500.0,0.0001902,2]
[350207097,1737689442839,-410.28408645,0.0001902,2]
[350207098,1737689442848,-500.0,0.0001902,2]
[350207099,1737689442858,-276.36,0.0001902,2]
[350207100,1737689442866,-500.0,0.0001902,2]
[350207101,1737689442875,-500.0,0.0001902,2]
[350207102,1737689442886,-500.0,0.0001902,2]
[350207103,1737689442895,-319.84,0.0001902,2]
[350207104,1737689442904,-500.0,0.0001902,2]
[350207105,1737689442913,-210.8,0.0001902,2]
[350207106,1737689442922,-500.0,0.0001902,2]
[350207107,1737689442931,-500.0,0.0001902,2]
[350207108,1737689442939,-956.13,0.0001902,2]
[350207109,1737689442948,-261.96207679,0.0001902,2]
[350207110,1737689442958,-231.12,0.0001902,2]
[350207111,1737689442967,-500.0,0.0001902,2]
[350207112,1737689442976,-500.0,0.0001902,2]
[350207113,1737689442985,-500.0,0.0001902,2]
[350207114,1737689442994,-500.0,0.0001902,2]
[350207115,1737689443003,-439.36,0.0001902,2]
[350207116,1737689443012,-500.0,0.0001902,2]
[350207117,1737689443021,-500.0,0.0001902,2]
[350207118,1737689443030,-500.0,0.0001902,2]
[350207119,1737689443038,-500.0,0.0001902,2]
[350207120,1737689443047,-500.0,0.0001902,2]
[350207121,1737689443056,-301.76,0.0001902,2]
[350207122,1737689443065,-500.0,0.0001902,2]
[350207123,1737689443074,-624.48,0.0001902,2]
[350207124,1737689443083,-500.0,0.0001902,2]
[350207125,1737689443092,-160.02,0.0001902,2]
[350207126,1737689443101,-500.0,0.0001902,2]
[350207127,1737689443110,-1257.65,0.0001902,2]
[350207128,1737689443119,-1930.23,0.0001902,2]
[350207129,1737689443130,-500.0,0.0001902,2]
[350207130,1737689443139,-500.0,0.0001902,2]
[350207131,1737689443148,-162.8,0.0001902,2]
[350207132,1737689443158,-503.4,0.0001902,2]
[350207133,1737689443167,-500.0,0.0001902,2]
[350207134,1737689443176,-500.0,0.0001902,2]
[350207135,1737689443186,-500.0,0.0001902,2]
[350207136,1737689443195,-500.0,0.0001902,2]
[350207137,1737689443204,-500.0,0.0001902,2]
[350207138,1737689443213,-500.0,0.0001902,2]
[350207139,1737689443222,-500.0,0.0001902,2]
[350207140,1737689443232,-500.0,0.0001902,2]
[350207141,1737689443241,-501.04,0.0001902,2]
[350207142,1737689443250,-396.8,0.0001902,2]
[350207143,1737689443260,-455.0,0.0001902,2]
[350207144,1737689443269,-500.0,0.00019022,2]
[350207146,1737689443278,-513.83699682,0.00019057,2]
[350207147,1737689443287,-500.0,0.00019057,2]
[350207149,1737689443296,-500.0,0.00019057,2]
[350207151,1737689443305,-500.0,0.00019057,2]
[350207153,1737689443314,-500.0,0.00019057,2]
[350207155,1737689443323,-518.61703104,0.00019057,2]
[350207157,1737689443332,-500.0,0.00019057,2]
[350207159,1737689443343,-500.0,0.00019057,2]
[350207161,1737689443352,-500.0,0.00019057,2]
[350207163,1737689443361,-500.0,0.00019057,2]
[350207165,1737689443370,-500.0,0.00019057,2]
[350207168,1737689443382,-500.0,0.00019057,2]
[350207170,1737689443392,-500.0,0.00019057,2]
[350207171,1737689443401,-500.0,0.00019057,2]
[350207173,1737689443411,-500.0,0.00019057,2]
[350207175,1737689443420,-500.0,0.00019057,2]
[350207177,1737689443430,-543.82959321,0.00019057,2]
[350207179,1737689443439,-398.10417171,0.00019057,2]
[350207180,1737689443449,-500.0,0.00019057,2]
[350207181,1737689443458,-500.0,0.00019057,2]
[350207184,1737689443467,-500.0,0.00019057,2]
[350207186,1737689443477,-500.0,0.00019057,2]
[350207190,1737689443486,-500.0,0.00019057,2]
[350207193,1737689443496,-186.49618386,0.00019057,2]
[350207196,1737689443505,-500.0,0.00019057,2]
[350207199,1737689443514,-503.64021085,0.00019057,2]
[350207201,1737689443523,-500.0,0.00019057,2]
[350207203,1737689443532,-500.0,0.00019057,2]
[350207204,1737689443541,-500.0,0.00019057,2]
[350207206,1737689443550,-500.0,0.00019057,2]
[350207208,1737689443559,-500.0,0.00019057,2]
[350207210,1737689443568,-500.0,0.00019057,2]
[350207211,1737689443578,-500.0,0.00019057,2]
[350207213,1737689443587,-500.0,0.00019057,2]
[350207215,1737689443596,-500.0,0.00019057,2]
[350207217,1737689443606,-500.0,0.00019057,2]
[350207218,1737689443615,-500.0,0.00019057,2]
[350207220,1737689443623,-500.0,0.00019057,2]
[350207221,1737689443636,-500.0,0.00019057,2]
[350207222,1737689443645,-500.0,0.00019057,2]
[350207223,1737689443654,-500.0,0.00019057,2]
[350207224,1737689443664,-500.0,0.00019057,2]
[350207225,1737689443673,-500.0,0.00019057,2]
[350207226,1737689443805,-500.0,0.00019057,2]
[350207227,1737689443816,-500.0,0.00019057,2]
[350207228,1737689443825,-500.0,0.00019057,2]
[350207229,1737689443834,-500.0,0.00019057,2]
[350207230,1737689443843,-500.0,0.00019057,2]
[350207231,1737689443852,-500.0,0.00019057,2]
[350207232,1737689443862,-500.0,0.00019057,2]
[350207233,1737689443872,-500.0,0.00019057,2]
[350207234,1737689443882,-500.0,0.00019057,2]
[350207235,1737689443892,-500.0,0.00019057,2]
[350207236,1737689443902,-500.0,0.00019057,2]
[350207237,1737689443912,-500.0,0.00019057,2]
[350207238,1737689443921,-500.0,0.00019057,2]
[350207239,1737689443931,-500.0,0.00019057,2]
[350207240,1737689443941,-500.0,0.00019057,2]
[350207241,1737689443951,-500.0,0.00019057,2]
[350207242,1737689443961,-500.0,0.00019057,2]
[350207243,1737689443971,-500.0,0.00019057,2]
[350207244,1737689443981,-500.0,0.00019057,2]
[350207245,1737689443990,-500.0,0.00019057,2]
[350207246,1737689444000,-507.5460828,0.00019057,2]
[350207247,1737689444010,-500.0,0.00019057,2]
[350207248,1737689444019,-516.24506315,0.00019057,2]
[350207249,1737689444028,-571.01684738,0.00019057,2]
[350207250,1737689444038,-500.0,0.00019057,2]
[350207251,1737689444047,-500.0,0.00019057,2]
[350207252,1737689444056,-500.0,0.00019057,2]
[350207253,1737689444077,-500.0,0.00019057,2]
[350207254,1737689444086,-500.0,0.00019057,2]
[350207255,1737689444096,-500.0,0.00019057,2]
[350207256,1737689444105,-500.0,0.00019057,2]
[350207257,1737689444115,-500.0,0.00019057,2]
[350207258,1737689444124,-525.13732564,0.00019057,2]
[350207259,1737689444138,-500.0,0.00019057,2]
[350207260,1737689444148,-503.40268397,0.00019057,2]
[350207261,1737689444157,-500.0,0.00019057,2]
[350207262,1737689444167,-500.0,0.00019057,2]
[350207263,1737689444176,-500.0,0.00019057,2]
[350207264,1737689444185,-500.0,0.00019057,2]
[350207265,1737689444194,-300.0,0.00019058,2]
[350207266,1737689444203,-602.71,0.0001906,2]
[350207267,1737689444213,-200.0,0.00019062,2]
[350207268,1737689444222,-165.36,0.00019097,2]
[350207269,1737689444231,-1311.22462217,0.00019111,2]
[350207270,1737689444241,-151.0,0.0001914,2]
[350207271,1737689444251,-360.20503804,0.00019141,2]
[350207272,1737689444260,-500.0,0.00019164,2]
[350207273,1737689444269,-700.0,0.00019164,2]
[350207274,1737689444279,-802.74,0.00019178,2]
[350207275,1737689444289,-202.31,0.00019178,2]
[350207276,1737689444298,-646.54,0.00019178,2]
[350207277,1737689444307,-500.0,0.00019178,2]
[350207278,1737689444317,-500.0,0.00019178,2]
[350207279,1737689444327,-500.0,0.00019178,2]
[350207280,1737689444336,-790.11,0.00019178,2]